fUST/lending_fUST_20250208
["ID","MTS","AMOUNT","RATE_DAILY","PERIOD"]
[352233078,1739013047243,-3487.73,0.00011369,2]
[352233080,1739013047253,-500.0,0.00011369,2]
[352233082,1739013047263,-9145.14,0.00011369,2]
[352233084,1739013047275,-500.0,0.00011369,2]
[352233086,1739013047285,-4209.68,0.00011369,2]
[352233088,1739013047295,-638.99,0.00011369,2]
[352233090,1739013047305,-1747.62,0.00011369,2]
[352233092,1739013047314,-856.23,0.00011369,2]
[352233094,1739013047324,-1603.73,0.00011369,2]
[352233096,1739013047333,-935.88,0.00011369,2]
[352233098,1739013047345,-500.0,0.00011369,2]
[352233100,1739013047357,-1749.15,0.00011369,2]
[352233102,1739013047367,-1378.16,0.00011369,2]
[352233104,1739013047377,-500.0,0.00011369,2]
[352233106,1739013047387,-500.0,0.00011369,2]
[352233109,1739013047397,-4646.5,0.00011369,2]
[352233111,1739013047407,-500.0,0.00011369,2]
[352233113,1739013047417,-500.0,0.00011369,2]
[352233115,1739013047429,-651.17,0.00011369,2]
[352233117,1739013047439,-893.61,0.00011369,2]
[352233119,1739013047448,-664.04,0.00011369,2]
[352233120,1739013047459,-500.0,0.00011369,2]
[352233122,1739013047468,-500.0,0.00011369,2]
[352233124,1739013047478,-500.0,0.00011369,2]
[352233126,1739013047488,-500.0,0.00011369,2]
[352233128,1739013047499,-1100.89,0.00011369,2]
[352233130,1739013047510,-1923.5,0.00011369,2]
[352233132,1739013047520,-500.0,0.00011369,2]
[352233134,1739013047531,-1609.09,0.00011369,2]
[352233136,1739013047542,-500.0,0.00011369,2]
[352233138,1739013047553,-550.25,0.00011369,2]
[352233140,1739013047563,-245.63,0.00011369,2]
[352233142,1739013047574,-500.0,0.00011369,2]
[352233144,1739013047585,-3037.2,0.00011369,2]
[352233146,1739013047594,-500.0,0.00011369,2]
[352233148,1739013047604,-500.0,0.00011385,2]
[352233150,1739013047615,-500.0,0.00011385,2]
[352233152,1739013047625,-500.0,0.00011385,2]
[352233154,1739013047635,-500.0,0.00011385,2]
[352233156,1739013047644,-585.45216601,0.00011388,2]
[352233158,1739013047654,-500.0,0.00011388,2]
[352233160,1739013047663,-502.63900238,0.00011395,2]
[352233162,1739013047674,-151.0,0.000114,2]
[352233164,1739013047684,-151.0,0.000114,2]
[352233166,1739013047693,-13265.39216455,0.00011405,2]
[352233168,1739013047704,-500.0,0.00011414,2]
[352233170,1739013047714,-500.0,0.00011414,2]
[352233172,1739013047724,-500.0,0.0001145,2]
[352233174,1739013047733,-500.0,0.0001145,2]
[352233176,1739013047743,-151.0,0.000115,2]
[352233178,1739013047753,-151.0,0.00011506,2]
[352233180,1739013047763,-451.639998,0.00011506,2]
[352233182,1739013047773,-451.639998,0.00011506,2]
[352233184,1739013047783,-151.0,0.00011506,2]
[352233186,1739013047793,-151.0,0.00011506,2]
[352233188,1739013047802,-500.0,0.00011506,2]
[352233190,1739013047812,-500.0,0.00011506,2]
[352233192,1739013047822,-500.0,0.00011506,2]
[352233194,1739013047832,-500.0,0.00011506,2]
[352233196,1739013047842,-500.0,0.00011506,2]
[352233198,1739013047851,-714.6,0.00011506,2]
[352233200,1739013047862,-500.0,0.00011506,2]
[352233202,1739013047872,-956.38,0.00011506,2]
[352233204,1739013047882,-500.0,0.00011506,2]
[352233206,1739013047892,-500.0,0.00011506,2]
[352233208,1739013047902,-500.0,0.00011506,2]
[352233210,1739013047913,-151.0,0.00011506,2]
[352233212,1739013047922,-516.85427274,0.00011506,2]
[352233214,1739013047933,-500.0,0.00011506,2]
[352233216,1739013047943,-778.36,0.00011506,2]
[352233218,1739013047953,-513.72,0.00011506,2]
[352233220,1739013047963,-500.0,0.00011506,2]
[352233222,1739013047974,-500.0,0.00011506,2]
[352233224,1739013047985,-320.518371,0.00011506,2]
[352233226,1739013047994,-320.518371,0.00011506,2]
[352233228,1739013048005,-500.0,0.00011506,2]
[352233230,1739013048016,-664.21,0.00011506,2]
[352233232,1739013048025,-500.0,0.00011506,2]
[352233234,1739013048035,-151.0,0.00011506,2]
[352233236,1739013048044,-561.22,0.00011506,2]
[352233237,1739013048055,-500.0,0.00011506,2]
[352233239,1739013048064,-500.0,0.00011506,2]
[352233241,1739013048074,-500.0,0.00011506,2]
[352233243,1739013048084,-699.94,0.00011506,2]
[352233245,1739013048094,-500.0,0.00011506,2]
[352233247,1739013048105,-500.0,0.00011506,2]
[352233249,1739013048114,-500.0,0.00011506,2]
[352233251,1739013048124,-500.0,0.00011506,2]
[352233253,1739013048134,-500.0,0.00011506,2]
[352233255,1739013048144,-500.0,0.00011506,2]
[352233257,1739013048154,-500.0,0.00011506,2]
[352233259,1739013048163,-500.0,0.00011506,2]
[352233261,1739013048173,-500.0,0.00011506,2]
[352233263,1739013048182,-1312.15,0.00011506,2]
[352233265,1739013048193,-994.33,0.00011506,2]
[352233267,1739013048203,-500.0,0.00011506,2]
[352233269,1739013048214,-1337.38,0.00011506,2]
[352233271,1739013048224,-500.0,0.00011506,2]
[352233273,1739013048234,-279.00637962,0.00011506,2]
[352233275,1739013048244,-245.011434,0.00011506,2]
[352233277,1739013048256,-245.011434,0.00011506,2]
[352233279,1739013048266,-500.0,0.00011506,2]
[352233281,1739013048276,-151.0,0.00011506,2]
[352233282,1739013048286,-500.0,0.00011506,2]
[352233285,1739013048297,-151.0,0.00011506,2]
[352233286,1739013048307,-151.0,0.00011506,2]
[352233288,1739013048317,-500.0,0.00011506,2]
[352233290,1739013048329,-500.0,0.00011506,2]
[352233292,1739013048343,-682.72,0.00011506,2]
[352233295,1739013048359,-500.0,0.00011506,2]
[352233296,1739013048369,-500.0,0.00011506,2]
[352233298,1739013048380,-292.242362,0.00011506,2]
[352233300,1739013048392,-292.242362,0.00011506,2]
[352233302,1739013048403,-500.0,0.00011506,2]
[352233304,1739013048413,-546.78,0.00011506,2]
[352233306,1739013048427,-500.0,0.00011506,2]
[352233309,1739013048439,-151.0,0.00011506,2]
[352233310,1739013048450,-151.0,0.00011506,2]
[352233313,1739013048462,-500.0,0.00011506,2]
[352233314,1739013048472,-500.0,0.00011506,2]
[352233316,1739013048483,-217.397984,0.00011506,2]
[352233318,1739013048493,-217.397984,0.00011506,2]
[352233320,1739013048504,-1470.99,0.00011506,2]
[352233322,1739013048515,-500.0,0.00011506,2]
[352233324,1739013048527,-500.0,0.00011506,2]
[352233326,1739013048537,-1039.26,0.00011506,2]
[352233329,1739013048548,-500.0,0.00011506,2]
[352233331,1739013048559,-491.717401,0.00011506,2]
[352233332,1739013048569,-1458.39,0.00011506,2]
[352233334,1739013048580,-500.0,0.00011506,2]
[352233337,1739013048590,-491.717401,0.00011506,2]
[352233338,1739013048601,-500.0,0.00011506,2]
[352233340,1739013048612,-500.0,0.00011506,2]
[352233342,1739013048623,-500.0,0.00011506,2]
[352233344,1739013048634,-500.0,0.00011506,2]
[352233361,1739013048784,-151.0,0.00011506,2]
[352233363,1739013048795,-500.0,0.00011506,2]
[352233365,1739013048804,-1719.8,0.00011506,2]
[352233367,1739013048814,-500.0,0.00011506,2]
[352233369,1739013048824,-9474.92,0.00011506,2]
[352233371,1739013048834,-743.27,0.00011506,2]
[352233373,1739013048845,-500.0,0.00011506,2]
[352233375,1739013048854,-773.09,0.00011506,2]
[352233376,1739013048864,-3945.69,0.00011506,2]
[352233378,1739013048874,-151.0,0.00011506,2]
[352233380,1739013048885,-500.0,0.00011506,2]
[352233382,1739013048895,-1333.61,0.00011506,2]
[352233384,1739013048905,-1249.67,0.00011506,2]
[352233386,1739013048914,-769.46,0.00011506,2]
[352233388,1739013048924,-633.33,0.00011506,2]
[352233390,1739013048934,-3427.74,0.00011506,2]
[352233392,1739013048943,-500.0,0.00011506,2]
[352233394,1739013048953,-500.0,0.00011506,2]
[352233396,1739013048963,-500.0,0.00011506,2]
[352233398,1739013048972,-500.0,0.00011506,2]
[352233400,1739013048981,-500.0,0.00011506,2]
[352233402,1739013048991,-500.0,0.00011506,2]
[352233404,1739013049000,-500.0,0.00011506,2]
[352233406,1739013049010,-1477.59,0.00011506,2]
[352233409,1739013049028,-500.0,0.00011506,2]
[352233411,1739013049040,-500.0,0.00011506,2]
[352233413,1739013049051,-4159.53,0.00011506,2]
[352233415,1739013049061,-500.0,0.00011506,2]
[352233417,1739013049071,-500.0,0.00011506,2]
[352233419,1739013049082,-5561.26,0.00011506,2]
[352233421,1739013049092,-500.0,0.00011506,2]
[352233423,1739013049103,-690.01,0.00011506,2]
[352233425,1739013049113,-500.0,0.00011506,2]
[352233427,1739013049124,-2115.37,0.00011506,2]
[352233429,1739013049134,-1685.04,0.00011506,2]
[352233431,1739013049144,-500.0,0.00011506,2]
[352233433,1739013049155,-500.0,0.00011506,2]
[352233435,1739013049164,-500.0,0.00011506,2]
[352233437,1739013049174,-500.0,0.00011506,2]
[352233439,1739013049186,-1228.03,0.00011506,2]
[352233441,1739013049196,-1445.5,0.00011506,2]
[352233443,1739013049206,-500.0,0.00011506,2]
[352233445,1739013049215,-600.27658501,0.00011506,2]
[352233447,1739013049225,-47197.88,0.00011506,2]
[352233449,1739013049236,-16725.12,0.00011506,2]
[352233451,1739013049245,-500.0,0.00011506,2]
[352233453,1739013049256,-500.0,0.00011506,2]
[352233455,1739013049266,-500.0,0.00011506,2]
[352233457,1739013049276,-1474.87,0.00011506,2]
[352233459,1739013049286,-500.0,0.00011506,2]
[352233461,1739013049295,-500.0,0.00011506,2]
[352233463,1739013049306,-500.0,0.00011506,2]
[352233465,1739013049315,-500.0,0.00011506,2]
[352233467,1739013049326,-500.0,0.00011506,2]
[352233469,1739013049337,-500.0,0.00011506,2]
[352233471,1739013049352,-2098.99,0.00011506,2]
[352233473,1739013049362,-500.0,0.00011506,2]
[352233475,1739013049372,-579.46,0.00011506,2]
[352233477,1739013049382,-983.36,0.00011506,2]
[352233479,1739013049394,-500.0,0.00011506,2]
[352233481,1739013049404,-1998.66,0.00011506,2]
[352233483,1739013049414,-1969.37,0.00011506,2]
[352233485,1739013049424,-574.102202,0.00011506,2]
[352233487,1739013049436,-151.0,0.00011506,2]
[352233489,1739013049446,-574.102202,0.00011506,2]
[352233491,1739013049456,-500.0,0.00011506,2]
[352233494,1739013049466,-1227.56,0.00011506,2]
[352233495,1739013049477,-557.71,0.00011506,2]
[352233497,1739013049487,-151.0,0.00011506,2]
[352233499,1739013049500,-500.0,0.00011506,2]
[352233501,1739013049510,-500.0,0.00011506,2]
[352233503,1739013049520,-151.0,0.00011506,2]
[352233506,1739013049531,-500.0,0.00011506,2]
[352233508,1739013049541,-500.0,0.00011506,2]
[352233509,1739013049551,-500.0,0.00011506,2]
[352233511,1739013049561,-1412.97,0.00011506,2]
[352233513,1739013049571,-151.0,0.00011506,2]
[352233515,1739013049580,-500.0,0.00011506,2]
[352233517,1739013049590,-672.32,0.00011506,2]
[352233519,1739013049599,-151.0,0.00011506,2]
[352233521,1739013049609,-500.0,0.00011506,2]
[352233523,1739013049619,-2219.88,0.00011506,2]
[352233525,1739013049628,-500.0,0.00011506,2]
[352233527,1739013049638,-500.0,0.00011506,2]
[352233529,1739013049648,-4164.04,0.00011506,2]
[352233531,1739013049658,-3487.73,0.00011506,2]
[352233533,1739013049667,-500.0,0.00011506,2]
[352233535,1739013049676,-9145.14,0.00011506,2]
[352233537,1739013049686,-500.0,0.00011506,2]
[352233539,1739013049696,-803.136992,0.00011506,2]
[352233541,1739013049705,-638.99,0.00011506,2]
[352233542,1739013049715,-4209.68,0.00011506,2]
[352233543,1739013049724,-1747.62,0.00011506,2]
[352233544,1739013049733,-803.136992,0.00011506,2]
[352233545,1739013049743,-856.23,0.00011506,2]
[352233546,1739013049753,-1603.73,0.00011506,2]
[352233547,1739013049762,-935.88,0.00011506,2]
[352233548,1739013049772,-500.0,0.00011506,2]
[352233549,1739013049782,-1749.15,0.00011506,2]
[352233550,1739013049791,-1378.16,0.00011506,2]
[352233551,1739013049801,-500.0,0.00011506,2]
[352233552,1739013049811,-227.60640928,0.00011506,2]
[352233553,1739013049820,-4646.5,0.00011506,2]
[352233554,1739013049829,-500.0,0.00011506,2]
[352233555,1739013049839,-651.17,0.00011506,2]
[352233556,1739013049848,-893.61,0.00011506,2]
[352233557,1739013049857,-664.04,0.00011506,2]
[352233558,1739013049867,-462.27252829,0.00011506,2]
[352233559,1739013049876,-500.0,0.00011506,2]
[352233560,1739013049886,-500.0,0.00011506,2]
[352233561,1739013049896,-500.0,0.00011506,2]
[352233562,1739013049906,-1100.89,0.00011506,2]
[352233563,1739013049916,-1923.5,0.00011506,2]
[352233564,1739013049925,-500.0,0.00011506,2]
[352233565,1739013049934,-151.0,0.00011506,2]
[352233567,1739013049944,-285.219417,0.00011506,2]
[352233569,1739013049953,-1609.09,0.00011506,2]
[352233571,1739013049962,-500.0,0.00011506,2]
[352233573,1739013049971,-500.0,0.00011506,2]
[352233576,1739013049980,-151.0,0.00011506,2]
[352233578,1739013049989,-3037.2,0.00011506,2]
[352233580,1739013049999,-500.0,0.00011506,2]
[352233582,1739013050007,-820.448904,0.00011543,2]
[352233584,1739013050016,-820.448904,0.00011543,2]
[352233586,1739013050026,-151.0,0.00011543,2]
[352233588,1739013050035,-644.854219,0.00011543,2]
[352233590,1739013050044,-644.854219,0.00011543,2]
[352233592,1739013050054,-4365.48217213,0.00011543,2]
[352233594,1739013050070,-20000.000002,0.00011563,2]
[352233597,1739013050087,-574.102202,0.00011563,2]
[352233600,1739013050102,-214.294755,0.00011563,2]
[352233603,1739013050118,-574.102202,0.00011563,2]
[352233605,1739013050130,-156.747483,0.00011563,2]
[352233608,1739013050145,-531.153,0.000116,2]
[352233610,1739013050158,-500.0,0.00011643,2]
[352233613,1739013050172,-500.0,0.00011643,2]
[352233615,1739013050186,-151.0,0.00011643,2]
[352233618,1739013050200,-500.0,0.00011643,2]
[352233620,1739013050215,-500.0,0.00011643,2]
[352233623,1739013050228,-151.0,0.00011643,2]
[352233625,1739013050241,-500.0,0.00011643,2]
[352233628,1739013050256,-151.0,0.00011643,2]
[352233630,1739013050269,-714.6,0.00011643,2]
[352233633,1739013050284,-500.0,0.00011643,2]
[352233635,1739013050297,-956.38,0.00011643,2]
[352233637,1739013050309,-500.0,0.00011643,2]
[352233639,1739013050319,-289.21638713,0.00011643,2]
[352233642,1739013050332,-151.0,0.00011643,2]
[352233644,1739013050346,-230.23409481,0.00011643,2]
[352233646,1739013050358,-778.36,0.00011643,2]
[352233649,1739013050371,-513.72,0.00011643,2]
[352233651,1739013050384,-500.0,0.00011643,2]
[352233654,1739013050401,-198.48339176,0.00011643,2]
[352233656,1739013050414,-500.0,0.00011643,2]
[352233659,1739013050431,-664.21,0.00011643,2]
[352233661,1739013050443,-500.0,0.00011643,2]
[352233663,1739013050453,-151.0,0.00011643,2]
[352233665,1739013050464,-561.22,0.00011643,2]
[352233668,1739013050478,-500.0,0.00011643,2]
[352233670,1739013050492,-500.0,0.00011643,2]
[352233673,1739013050504,-500.0,0.00011643,2]
[352233675,1739013050515,-699.94,0.00011643,2]
[352233677,1739013050526,-500.0,0.00011643,2]
[352233679,1739013050540,-500.0,0.00011643,2]
[352233682,1739013050551,-500.0,0.00011643,2]
[352233684,1739013050562,-500.0,0.00011643,2]
[352233686,1739013050573,-500.0,0.00011643,2]
[352233689,1739013050586,-500.0,0.00011643,2]
[352233691,1739013050597,-500.0,0.00011643,2]
[352233693,1739013050609,-500.0,0.00011643,2]
[352233695,1739013050620,-1312.15,0.00011643,2]
[352233698,1739013050632,-500.0,0.00011643,2]
[352233700,1739013050644,-994.33,0.00011643,2]
[352233702,1739013050656,-1337.38,0.00011643,2]
[352233704,1739013050668,-500.0,0.00011643,2]
[352233707,1739013050681,-245.011434,0.00011643,2]
[352233709,1739013050692,-245.011434,0.00011643,2]
[352233711,1739013050704,-500.0,0.00011643,2]
[352233713,1739013050715,-151.0,0.00011643,2]
[352233716,1739013050727,-500.0,0.00011643,2]
[352233718,1739013050739,-500.0,0.00011643,2]
[352233720,1739013050752,-151.073598,0.00011643,2]
[352233723,1739013050764,-500.0,0.00011643,2]
[352233725,1739013050775,-151.073598,0.00011643,2]
[352233727,1739013050786,-682.72,0.00011643,2]
[352233729,1739013050798,-500.0,0.00011643,2]
[352233732,1739013050809,-500.0,0.00011643,2]
[352233734,1739013050821,-292.242362,0.00011643,2]
[352233736,1739013050832,-292.242362,0.00011643,2]
[352233738,1739013050843,-500.87565422,0.00011643,2]
[352233740,1739013050854,-151.0,0.00011643,2]
[352233743,1739013050866,-546.78,0.00011643,2]
[352233745,1739013050877,-500.0,0.00011643,2]
[352233747,1739013050888,-151.0,0.00011643,2]
[352233749,1739013050900,-151.0,0.00011643,2]
[352233752,1739013050910,-500.0,0.00011643,2]
[352233754,1739013050922,-500.0,0.00011643,2]
[352233756,1739013050934,-217.397984,0.00011643,2]
[352233758,1739013050945,-217.397984,0.00011643,2]
[352233761,1739013050957,-1470.99,0.00011643,2]
[352233763,1739013050970,-500.0,0.00011643,2]
[352233765,1739013050982,-500.0,0.00011643,2]
[352233767,1739013050993,-1039.26,0.00011643,2]
[352233769,1739013051005,-491.717401,0.00011643,2]
[352233771,1739013051017,-1458.39,0.00011643,2]
[352233774,1739013051029,-500.0,0.00011643,2]
[352233776,1739013051041,-491.717401,0.00011643,2]
[352233778,1739013051052,-500.0,0.00011643,2]
[352233780,1739013051064,-500.0,0.00011643,2]
[352233783,1739013051076,-500.0,0.00011643,2]
[352233785,1739013051087,-500.0,0.00011643,2]
[352233787,1739013051099,-151.0,0.00011643,2]
[352233789,1739013051111,-500.0,0.00011643,2]
[352233792,1739013051123,-1719.8,0.00011643,2]
[352233794,1739013051135,-500.0,0.00011643,2]
[352233796,1739013051147,-9474.92,0.00011643,2]
[352233799,1739013051159,-743.27,0.00011643,2]
[352233801,1739013051171,-500.0,0.00011643,2]
[352233803,1739013051182,-773.09,0.00011643,2]
[352233805,1739013051195,-3945.69,0.00011643,2]
[352233808,1739013051207,-500.0,0.00011643,2]
[352233810,1739013051218,-1333.61,0.00011643,2]
[352233812,1739013051230,-1249.67,0.00011643,2]
[352233814,1739013051241,-769.46,0.00011643,2]
[352233816,1739013051253,-633.33,0.00011643,2]
[352233819,1739013051265,-3427.74,0.00011643,2]
[352233821,1739013051277,-500.0,0.00011643,2]
[352233823,1739013051288,-500.0,0.00011643,2]
[352233825,1739013051300,-500.0,0.00011643,2]
[352233827,1739013051312,-500.0,0.00011643,2]
[352233830,1739013051324,-500.0,0.00011643,2]
[352233832,1739013051337,-500.0,0.00011643,2]
[352233834,1739013051352,-500.0,0.00011643,2]
[352233836,1739013051364,-1477.59,0.00011643,2]
[352233839,1739013051376,-500.0,0.00011643,2]
[352233841,1739013051388,-500.0,0.00011643,2]
[352233843,1739013051400,-4159.53,0.00011643,2]
[352233845,1739013051412,-500.0,0.00011643,2]
[352233848,1739013051424,-5561.26,0.00011643,2]
[352233850,1739013051436,-500.0,0.00011643,2]
[352233852,1739013051447,-690.01,0.00011643,2]
[352233854,1739013051459,-2115.37,0.00011643,2]
[352233856,1739013051471,-1685.04,0.00011643,2]
[352233859,1739013051483,-500.0,0.00011643,2]
[352233861,1739013051495,-500.0,0.00011643,2]
[352233863,1739013051507,-500.0,0.00011643,2]
[352233865,1739013051519,-500.0,0.00011643,2]
[352233868,1739013051530,-1228.03,0.00011643,2]
[352233870,1739013051542,-1445.5,0.00011643,2]
[352233872,1739013051555,-47197.88,0.00011643,2]
[352233874,1739013051566,-16725.12,0.00011643,2]
[352233877,1739013051580,-500.0,0.00011643,2]
[352233879,1739013051593,-500.0,0.00011643,2]
[352233881,1739013051605,-1474.87,0.00011643,2]
[352233883,1739013051615,-500.0,0.00011643,2]
[352233908,1739013051830,-500.0,0.00011643,2]
[352233912,1739013051861,-500.0,0.00011643,2]
[352233914,1739013051877,-500.0,0.00011643,2]
[352233916,1739013051886,-500.0,0.00011643,2]
[352233918,1739013051896,-500.0,0.00011643,2]
[352233920,1739013051905,-2098.99,0.00011643,2]
[352233923,1739013051915,-500.0,0.00011643,2]
[352233925,1739013051924,-579.46,0.00011643,2]
[352233927,1739013051934,-983.36,0.00011643,2]
[352233929,1739013051943,-500.0,0.00011643,2]
[352233931,1739013051952,-1998.66,0.00011643,2]
[352233933,1739013051961,-1969.37,0.00011643,2]
[352233935,1739013051970,-500.0,0.00011643,2]
[352233937,1739013051979,-1227.56,0.00011643,2]
[352233939,1739013051988,-557.71,0.00011643,2]
[352233941,1739013051997,-151.0,0.00011643,2]
[352233943,1739013052008,-500.0,0.00011643,2]
[352233944,1739013052017,-500.0,0.00011643,2]
[352233946,1739013052026,-151.0,0.00011643,2]
[352233948,1739013052035,-500.0,0.00011643,2]
[352233950,1739013052044,-500.0,0.00011643,2]
[352233952,1739013052054,-500.0,0.00011643,2]
[352233954,1739013052063,-1412.97,0.00011643,2]
[352233956,1739013052072,-151.0,0.00011643,2]
[352233958,1739013052081,-672.32,0.00011643,2]
[352233960,1739013052091,-500.0,0.00011643,2]
[352233962,1739013052100,-2219.88,0.00011643,2]
[352233964,1739013052109,-500.0,0.00011643,2]
[352233966,1739013052118,-500.0,0.00011643,2]
[352233968,1739013052127,-4164.04,0.00011643,2]
[352233969,1739013052136,-3487.73,0.00011643,2]
[352233970,1739013052145,-500.0,0.00011643,2]
[352233971,1739013052161,-9145.14,0.00011643,2]
[352233972,1739013052171,-500.0,0.00011643,2]
[352233973,1739013052180,-4209.68,0.00011643,2]
[352233974,1739013052190,-638.99,0.00011643,2]
[352233976,1739013052199,-803.136992,0.00011643,2]
[352233978,1739013052208,-1747.62,0.00011643,2]
[352233980,1739013052218,-803.136992,0.00011643,2]
[352233982,1739013052227,-856.23,0.00011643,2]
[352233984,1739013052236,-1603.73,0.00011643,2]
[352233986,1739013052246,-935.88,0.00011643,2]
[352233988,1739013052255,-500.0,0.00011643,2]
[352233990,1739013052264,-197.75253672,0.00011643,2]
[352242048,1739013553083,1000.0,0.0001402,28]
[352242054,1739013869490,1404.78330576,0.00015,120]
[352242095,1739014232630,-5000.0,0.00010505,2]
[352242096,1739014232640,-167.0,0.00010718,2]
[352242097,1739014232650,-167.0,0.00010718,2]
[352242098,1739014232659,-251.24,0.00010718,2]
[352242099,1739014232669,-215.28696348,0.00010858,2]
[352242100,1739014232678,-151.0,0.00010951,2]
[352242101,1739014232687,-300.0,0.00010956,2]
[352242102,1739014232697,-500.0,0.00010957,2]
[352242103,1739014232707,-500.0,0.00010957,2]
[352242104,1739014232716,-500.0,0.00010957,2]
[352242105,1739014232726,-500.0,0.00010957,2]
[352242106,1739014232735,-500.0,0.00010957,2]
[352242107,1739014232745,-314.52643007,0.00010957,2]
[352242108,1739014232754,-500.0,0.00010958,2]
[352242109,1739014232764,-501.79114185,0.00010958,2]
[352242110,1739014232773,-500.0,0.00010958,2]
[352242111,1739014232782,-494.95366369,0.00010958,2]
[352242112,1739014232802,-500.0,0.00010958,2]
[352242113,1739014232812,-500.0,0.00010958,2]
[352242114,1739014232825,-498.68632513,0.00010958,2]
[352242116,1739014232834,-500.0,0.00010958,2]
[352242117,1739014232844,-500.0,0.00010958,2]
[352242118,1739014232854,-501.75703181,0.00010958,2]
[352242119,1739014232865,-502.04530904,0.00010958,2]
[352242120,1739014232875,-500.0,0.00010958,2]
[352242121,1739014232885,-501.20303368,0.00010958,2]
[352242122,1739014232895,-500.0,0.00010958,2]
[352242123,1739014232905,-500.91212247,0.00010958,2]
[352242124,1739014232915,-500.0,0.00010958,2]
[352242125,1739014232925,-500.0,0.00010958,2]
[352242126,1739014232935,-500.0,0.00010958,2]
[352242127,1739014232944,-500.0,0.00010958,2]
[352242128,1739014232954,-513.82727135,0.00010958,2]
[352242129,1739014232963,-500.0,0.00010958,2]
[352242130,1739014232973,-500.0,0.00010958,2]
[352242131,1739014232983,-500.0,0.00010958,2]
[352242132,1739014232993,-500.0,0.00010958,2]
[352242133,1739014233002,-500.0,0.00010958,2]
[352242134,1739014233013,-500.0,0.00010958,2]
[352242135,1739014233022,-500.0,0.00010958,2]
[352242136,1739014233033,-500.0,0.00010958,2]
[352242137,1739014233043,-500.0,0.00010958,2]
[352242138,1739014233053,-500.0,0.00010958,2]
[352242139,1739014233063,-500.0,0.00010958,2]
[352242140,1739014233074,-500.0,0.00010958,2]
[352242141,1739014233084,-528.34524524,0.00010958,2]
[352242142,1739014233093,-500.0,0.00010958,2]
[352242143,1739014233103,-523.26795905,0.00010958,2]
[352242144,1739014233112,-500.0,0.00010958,2]
[352242145,1739014233122,-500.0,0.00010958,2]
[352242146,1739014233132,-500.0,0.00010958,2]
[352242147,1739014233142,-500.0,0.00010958,2]
[352242148,1739014233151,-500.0,0.00010958,2]
[352242149,1739014233161,-500.0,0.00010958,2]
[352242150,1739014233172,-500.0,0.00010958,2]
[352242151,1739014233182,-500.0,0.00010958,2]
[352242152,1739014233192,-500.0,0.00010958,2]
[352242153,1739014233203,-500.0,0.00010958,2]
[352242154,1739014233212,-500.0,0.00010958,2]
[352242155,1739014233222,-500.0,0.00010958,2]
[352242156,1739014233231,-500.0,0.00010958,2]
[352242157,1739014233241,-500.0,0.00010958,2]
[352242158,1739014233251,-668.96,0.00010958,2]
[352242159,1739014233261,-500.0,0.00010958,2]